[Event "Croatian-ch Youth U15 2022"]
[Site "Trogir"]
[Date "2022.06.22"]
[Round "2.2"]
[White "Kos, Nikola"]
[Black "Franc, Borna"]
[Result "1/2-1/2"]
[ECO "C44"]
[WhiteElo "1523"]
[BlackElo "2032"]
[Annotator "NA RC"]
[PlyCount "57"]
[EventDate "2022.06.22"]
[EventType "swiss"]
[EventCountry "CRO"]
[SourceTitle "playchess.com"]
[Source "ChessBase"]
[SourceQuality "1"]
[TimeControl "5400+30"]

1. e4 {[%emt 0:00:03]} e5 {[%emt 0:00:03]} 2. Nf3 {[%emt 0:00:07]} Nc6 {[%emt 0:00:04]} 3. d4 {[%emt 0:00:06]} exd4 {[%emt 0:00:04]} 4. Bc4 {[%emt 0:00:06]} Bc5 {[%emt 0:00:21]} 5. c3 {[%emt 0:00:07]} d3 {[%emt 0:00:05]} 6. Qxd3 {[%emt 0:00:06]} d6 {[%emt 0:00:09]} 7. Be3 {[%emt 0:01:25]} Bxe3 {[%emt 0:00:31]} 8. Qxe3 {[%emt 0:00:06]} Nf6 {[%emt 0:01:04]} 9. h3 {[%emt 0:01:31]} O-O {[%emt 0:00:40]} 10. O-O {[%emt 0:05:51]} Qe7 {[%emt 0:02:24]} 11. Nbd2 {[%emt 0:02:59]} Ne5 {[%emt 0:00:45]} 12. Bb3 {[%emt 0:08:43]} Nxf3+ {[%emt 0:00:51]} 13. Qxf3 {[%emt 0:00:15]} Bd7 {[%emt 0:04:47]} 14. Rfe1 {[%emt 0:01:36]} Bc6 {[%emt 0:00:26]} 15. Qd3 {[%emt 0:00:32]} Qe5 {[%emt 0:05:52]} 16. Re3 {[%emt 0:03:40]} Rae8 {[%emt 0:15:16]} 17. Rae1 {[%emt 0:00:36]} Qf4 {[%emt 0:05:18]} 18. Bc2 {[%emt 0:11:26]} Re7 {[%emt 0:05:35]} 19. g3 {[%emt 0:24:54]} Qh6 {[%emt 0:00:38]} 20. Qf1 {[%emt 0:03:06]} Bd7 {[%emt 0:05:44]} 21. g4 {[%emt 0:01:34]} Qf4 {[%emt 0:05:35]} 22. R1e2 {[%emt 0:03:15]} h5 {[%emt 0:04:12]} 23. Rf3 {[%emt 0:08:54]} Qg5 {[%emt 0:00:23]} 24. Rg3 {[%emt 0:01:17]} hxg4 {[%emt 0:21:21]} 25. hxg4 {[%emt 0:01:06]} Qf4 {[%emt 0:00:22]} 26. Qg2 {[%emt 0:00:49]} g6 {[%emt 0:03:38]} 27. f3 {[%emt 0:01:21]} Kg7 {[%emt 0:02:10]} 28. Rh3 {[%emt 0:02:40]} Nh7 {[%emt 0:00:50]} 29. Rh1 {[%emt 0:02:41]} 1/2-1/2

[Event "Croatian-ch Youth U15 2022"]
[Site "Trogir"]
[Date "2022.06.22"]
[Round "2.3"]
[White "Colev, Ivor"]
[Black "Gazic, Adrian"]
[Result "1-0"]
[ECO "B33"]
[WhiteElo "1984"]
[BlackElo "1539"]
[Annotator "NA RC"]
[PlyCount "131"]
[EventDate "2022.06.22"]
[EventType "swiss"]
[EventCountry "CRO"]
[SourceTitle "playchess.com"]
[Source "ChessBase"]
[SourceQuality "1"]
[TimeControl "5400+30"]

1. e4 {[%emt 0:00:02]} c5 {[%emt 0:00:09]} 2. Nf3 {[%emt 0:00:04]} Nc6 {[%emt 0:00:14]} 3. d4 {[%emt 0:00:04]} cxd4 {[%emt 0:00:13]} 4. Nxd4 {[%emt 0:00:04]} Nf6 {[%emt 0:00:20]} 5. Nc3 {[%emt 0:00:08]} e5 {[%emt 0:00:22]} 6. Ndb5 {[%emt 0:00:07]} d6 {[%emt 0:00:11]} 7. Bg5 {[%emt 0:00:22]} a6 {[%emt 0:00:11]} 8. Na3 {[%emt 0:00:03]} b5 {[%emt 0:00:10]} 9. Nd5 {[%emt 0:00:11]} Be7 {[%emt 0:00:25]} 10. Bxf6 {[%emt 0:00:24]} Bxf6 {[%emt 0:00:17]} 11. c3 {[%emt 0:00:34]} O-O {[%emt 0:01:19]} 12. Be2 {[%emt 0:01:05]} Bg5 {[%emt 0:02:57]} 13. O-O {[%emt 0:02:40]} Be6 {[%emt 0:02:10]} 14. Nc2 {[%emt 0:01:12]} Ne7 {[%emt 0:02:59]} 15. Nce3 {[%emt 0:04:16]} Bxe3 {[%emt 0:01:20]} 16. Nxe3 {[%emt 0:00:46]} Qb6 {[%emt 0:04:13]} 17. Bg4 {[%emt 0:05:12]} Bxg4 {[%emt 0:03:54]} 18. Qxg4 {[%emt 0:00:07]} Rad8 {[%emt 0:04:06]} 19. Rad1 {[%emt 0:01:16]} Kh8 {[%emt 0:02:38]} 20. Rd3 {[%emt 0:01:21]} g6 {[%emt 0:03:07]} 21. Qh4 {[%emt 0:03:20]} f6 {[%emt 0:08:03]} 22. Rfd1 {[%emt 0:06:14]} Rd7 {[%emt 0:06:09]} 23. Qh6 {[%emt 0:16:36]} Rfd8 {[%emt 0:02:33]} 24. Ng4 {[%emt 0:01:32]} Ng8 {[%emt 0:02:50]} 25. Qh4 {[%emt 0:00:16]} Rf7 {[%emt 0:05:23]} 26. Nh6 {[%emt 0:03:49]} Nxh6 {[%emt 0:01:55]} 27. Qxh6 {[%emt 0:00:07]} f5 {[%emt 0:01:58]} 28. exf5 {[%emt 0:06:58]} Rxf5 {[%emt 0:00:30]} 29. Qe3 {[%emt 0:05:51]} Qxe3 {[%emt 0:02:11]} 30. fxe3 {[%emt 0:00:07]} Rf6 {[%emt 0:01:09]} 31. e4 {[%emt 0:00:52]} Kg7 {[%emt 0:02:04]} 32. Rd5 {[%emt 0:01:45]} Re6 {[%emt 0:01:31]} 33. R1d2 {[%emt 0:04:32]} Kf7 {[%emt 0:01:45]} 34. a4 {[%emt 0:00:46]} bxa4 {[%emt 0:01:56]} 35. Ra5 {[%emt 0:00:25]} Ra8 {[%emt 0:01:39]} 36. Rxa4 {[%emt 0:00:07]} Ke7 {[%emt 0:01:11]} 37. Rd5 {[%emt 0:10:46]} Rf6 {[%emt 0:02:00]} 38. Rda5 {[%emt 0:00:51]} Rb8 {[%emt 0:03:11]} 39. Ra2 {[%emt 0:01:21]} Rf4 {[%emt 0:02:46]} 40. R5a4 {[%emt 0:01:16]} h5 {[%emt 0:04:19]} 41. g3 {[%emt 0:07:53]} Rg4 {[%emt 0:00:31]} 42. Kg2 {[%emt 0:01:05]} d5 {[%emt 0:03:57]} 43. Kf3 {[%emt 0:04:42]} dxe4+ {[%emt 0:03:55]} 44. Rxe4 {[%emt 0:00:57]} Rf8+ {[%emt 0:02:33]} 45. Ke3 {[%emt 0:00:04]} Rxe4+ {[%emt 0:00:58]} 46. Kxe4 {[%emt 0:00:03]} Rf2 {[%emt 0:02:00]} 47. Kxe5 {[%emt 0:03:01]} Rxh2 {[%emt 0:00:46]} 48. Rxa6 {[%emt 0:03:12]} Rxb2 {[%emt 0:00:14]} 49. Rxg6 {[%emt 0:00:10]} Rg2 {[%emt 0:02:10]} 50. Rg7+ {[%emt 0:02:07]} Kf8 {[%emt 0:00:16]} 51. Rg5 {[%emt 0:00:06]} Ke7 {[%emt 0:02:18]} 52. c4 {[%emt 0:03:31]} Rc2 {[%emt 0:01:13]} 53. Kd4 {[%emt 0:01:00]} Rh2 {[%emt 0:04:28]} 54. Kc5 {[%emt 0:01:23]} h4 {[%emt 0:00:20]} 55. gxh4 {[%emt 0:00:08]} Rxh4 {[%emt 0:00:39]} 56. Rd5 {[%emt 0:00:01]} Rh6 {[%emt 0:00:25]} 57. Rd1 {[%emt 0:00:48]} Rg6 {[%emt 0:01:30]} 58. Kb5 {[%emt 0:00:23]} Rg8 {[%emt 0:00:52]} 59. c5 {[%emt 0:00:34]} Rb8+ {[%emt 0:00:20]} 60. Kc6 {[%emt 0:00:15]} Rc8+ {[%emt 0:00:20]} 61. Kb6 {[%emt 0:00:15]} Rb8+ {[%emt 0:01:24]} 62. Kc7 {[%emt 0:00:07]} Rb2 {[%emt 0:01:08]} 63. c6 {[%emt 0:00:05]} Re2 {[%emt 0:01:16]} 64. Kc8 {[%emt 0:00:20]} Re6 {[%emt 0:00:48]} 65. c7 {[%emt 0:00:10]} Re2 {[%emt 0:01:09]} 66. Rb1 {[%emt 0:01:51]} 1-0

[Event "Croatian-ch Youth U15 2022"]
[Site "Trogir"]
[Date "2022.06.22"]
[Round "2.4"]
[White "Krizanic, Petar"]
[Black "Sundac, Ivano"]
[Result "0-1"]
[ECO "B23"]
[WhiteElo "1481"]
[BlackElo "1978"]
[Annotator "NA RC"]
[PlyCount "82"]
[EventDate "2022.06.22"]
[EventType "swiss"]
[EventCountry "CRO"]
[SourceTitle "playchess.com"]
[Source "ChessBase"]
[SourceQuality "1"]
[TimeControl "5400+30"]

1. e4 {[%emt 0:00:04]} c5 {[%emt 0:00:02]} 2. Nc3 {[%emt 0:00:31]} Nc6 {[%emt 0:00:06]} 3. f4 {[%emt 0:00:43]} g6 {[%emt 0:00:25]} 4. Nf3 {[%emt 0:00:39]} Bg7 {[%emt 0:00:07]} 5. Bc4 {[%emt 0:00:36]} e6 {[%emt 0:00:13]} 6. O-O {[%emt 0:01:04]} Nge7 {[%emt 0:00:08]} 7. d3 {[%emt 0:01:59]} O-O {[%emt 0:00:14]} 8. Bd2 {[%emt 0:01:04]} d5 {[%emt 0:00:26]} 9. Bb3 {[%emt 0:01:11]} a6 {[%emt 0:01:53]} 10. a4 {[%emt 0:00:36]} b6 {[%emt 0:00:30]} 11. Qe1 {[%emt 0:02:18]} Bb7 {[%emt 0:00:49]} 12. Qh4 {[%emt 0:00:55]} Nd4 {[%emt 0:01:09]} 13. Rad1 {[%emt 0:02:26]} Rc8 {[%emt 0:08:34]} 14. Ng5 {[%emt 0:02:00]} h6 {[%emt 0:00:28]} 15. Nf3 {[%emt 0:00:37]} f5 {[%emt 0:02:00]} 16. e5 {[%emt 0:00:53]} Nxf3+ {[%emt 0:01:54]} 17. gxf3 {[%emt 0:05:23]} c4 {[%emt 0:02:29]} 18. dxc4 {[%emt 0:02:27]} dxc4 {[%emt 0:00:05]} 19. Be3 {[%emt 0:00:46]} Qe8 {[%emt 0:04:03]} 20. Ba2 {[%emt 0:00:51]} b5 {[%emt 0:00:40]} 21. a5 {[%emt 0:01:27]} b4 {[%emt 0:00:15]} 22. Ne2 {[%emt 0:00:38]} Nd5 {[%emt 0:00:12]} 23. Bd4 {[%emt 0:00:43]} Qb5 {[%emt 0:02:02]} 24. Rf2 {[%emt 0:02:12]} Qxa5 {[%emt 0:00:39]} 25. Bb1 {[%emt 0:00:43]} Qd8 {[%emt 0:00:16]} 26. Qg3 {[%emt 0:01:04]} Kh7 {[%emt 0:00:47]} 27. Rg2 {[%emt 0:00:22]} Qe8 {[%emt 0:00:06]} 28. Kh1 {[%emt 0:01:31]} Rg8 {[%emt 0:00:08]} 29. Rdg1 {[%emt 0:01:24]} Bf8 {[%emt 0:00:10]} 30. h4 {[%emt 0:01:15]} Be7 {[%emt 0:00:27]} 31. Qh3 {[%emt 0:00:42]} h5 {[%emt 0:00:10]} 32. c3 {[%emt 0:00:49]} a5 {[%emt 0:01:24]} 33. Qg3 {[%emt 0:02:17]} a4 {[%emt 0:03:04]} 34. cxb4 {[%emt 0:00:59]} Bxb4 {[%emt 0:00:28]} 35. Ba2 {[%emt 0:01:09]} Qc6 {[%emt 0:01:54]} 36. Qf2 {[%emt 0:03:02]} Be7 {[%emt 0:02:19]} 37. Rf1 {[%emt 0:01:02]} a3 {[%emt 0:02:42]} 38. bxa3 {[%emt 0:01:20]} Bxa3 {[%emt 0:00:08]} 39. Rfg1 {[%emt 0:00:20]} Nb4 {[%emt 0:00:32]} 40. Bb1 {[%emt 0:01:31]} Qxf3 {[%emt 0:00:05]} 41. Qe1 {[%emt 0:01:25]} Qh3# {[%emt 0:00:06]} 0-1

[Event "Croatian-ch Youth U15 2022"]
[Site "Trogir"]
[Date "2022.06.22"]
[Round "2.5"]
[White "Jakovic, Roko"]
[Black "Frouth, Vibor"]
[Result "1/2-1/2"]
[ECO "A77"]
[WhiteElo "1944"]
[BlackElo "1493"]
[Annotator "NA RC"]
[PlyCount "97"]
[EventDate "2022.06.22"]
[EventType "swiss"]
[EventCountry "CRO"]
[SourceTitle "playchess.com"]
[Source "ChessBase"]
[SourceQuality "1"]
[TimeControl "5400+30"]

1. d4 {[%emt 0:00:17]} Nf6 {[%emt 0:00:06]} 2. c4 {[%emt 0:00:18]} c5 {[%emt 0:00:20]} 3. d5 {[%emt 0:00:09]} e6 {[%emt 0:00:07]} 4. Nc3 {[%emt 0:01:09]} exd5 {[%emt 0:00:10]} 5. cxd5 {[%emt 0:00:10]} d6 {[%emt 0:00:06]} 6. e4 {[%emt 0:00:47]} g6 {[%emt 0:00:19]} 7. Nf3 {[%emt 0:01:09]} Bg7 {[%emt 0:00:32]} 8. Be2 {[%emt 0:01:55]} a6 {[%emt 0:00:26]} 9. a4 {[%emt 0:01:25]} O-O {[%emt 0:00:47]} 10. O-O {[%emt 0:08:20]} Re8 {[%emt 0:02:18]} 11. Nd2 {[%emt 0:04:48]} Nfd7 {[%emt 0:08:00]} 12. Kh1 {[%emt 0:10:22]} Nf8 {[%emt 0:04:59]} 13. f4 {[%emt 0:09:23]} f5 {[%emt 0:08:25]} 14. Bd3 {[%emt 0:09:37]} fxe4 {[%emt 0:03:29]} 15. Ncxe4 {[%emt 0:03:57]} Bf5 {[%emt 0:04:21]} 16. Qf3 {[%emt 0:06:59]} Qc7 {[%emt 0:06:18]} 17. g4 {[%emt 0:03:39]} Bxe4 {[%emt 0:00:38]} 18. Bxe4 {[%emt 0:03:16]} Nbd7 {[%emt 0:00:54]} 19. f5 {[%emt 0:06:26]} gxf5 {[%emt 0:02:26]} 20. Qxf5 {[%emt 0:05:15]} Nf6 {[%emt 0:02:29]} 21. g5 {[%emt 0:03:15]} Nxe4 {[%emt 0:01:01]} 22. Nxe4 {[%emt 0:00:10]} Re5 {[%emt 0:02:18]} 23. Qg4 {[%emt 0:05:11]} Kh8 {[%emt 0:06:17]} 24. Nf6 {[%emt 0:02:18]} Bxf6 {[%emt 0:03:44]} 25. gxf6 {[%emt 0:02:24]} Qf7 {[%emt 0:00:55]} 26. Bh6 {[%emt 0:02:54]} Ng6 {[%emt 0:02:12]} 27. Rae1 {[%emt 0:06:35]} Rxe1 {[%emt 0:01:12]} 28. Rxe1 {[%emt 0:00:00]} Qxf6 {[%emt 0:00:54]} 29. Bg5 {[%emt 0:01:52]} Qxb2 {[%emt 0:03:20]} 30. Qe6 {[%emt 0:00:46]} Rf8 {[%emt 0:01:42]} 31. Be7 {[%emt 0:00:35]} Nxe7 {[%emt 0:00:29]} 32. Qxe7 {[%emt 0:00:04]} Qf6 {[%emt 0:00:34]} 33. Qxf6+ {[%emt 0:00:33]} Rxf6 {[%emt 0:00:14]} 34. Re7 {[%emt 0:00:49]} Rf5 {[%emt 0:00:46]} 35. Rxb7 {[%emt 0:00:18]} Rxd5 {[%emt 0:00:08]} 36. Rb6 {[%emt 0:00:47]} Rd1+ {[%emt 0:00:19]} 37. Kg2 {[%emt 0:00:07]} c4 {[%emt 0:00:49]} 38. Rxa6 {[%emt 0:00:35]} d5 {[%emt 0:01:20]} 39. Rc6 {[%emt 0:00:46]} Ra1 {[%emt 0:00:15]} 40. Rc5 {[%emt 0:00:27]} Rxa4 {[%emt 0:01:30]} 41. Rxd5 {[%emt 0:00:03]} c3 {[%emt 0:00:12]} 42. Rc5 {[%emt 0:00:43]} Ra2+ {[%emt 0:00:41]} 43. Kg3 {[%emt 0:00:27]} c2 {[%emt 0:01:01]} 44. Rc7 {[%emt 0:00:34]} Ra3+ {[%emt 0:00:55]} 45. Kf2 {[%emt 0:00:35]} Ra2 {[%emt 0:00:27]} 46. Ke3 {[%emt 0:00:37]} Ra3+ {[%emt 0:00:10]} 47. Kd2 {[%emt 0:00:20]} Rh3 {[%emt 0:00:19]} 48. Kxc2 {[%emt 0:00:25]} Rxh2+ {[%emt 0:00:07]} 49. Kd3 {[%emt 0:00:11]} 1/2-1/2

[Event "Croatian-ch Youth U15 2022"]
[Site "Trogir"]
[Date "2022.06.22"]
[Round "2.6"]
[White "Gal, Andrej"]
[Black "Radic, Len"]
[Result "1-0"]
[ECO "D07"]
[WhiteElo "1874"]
[BlackElo "1457"]
[Annotator "NA RC"]
[PlyCount "81"]
[EventDate "2022.06.22"]
[EventType "swiss"]
[EventCountry "CRO"]
[SourceTitle "playchess.com"]
[Source "ChessBase"]
[SourceQuality "1"]
[TimeControl "5400+30"]

1. d4 {[%emt 0:00:02]} d5 {[%emt 0:00:12]} 2. c4 {[%emt 0:00:05]} Nc6 {[%emt 0:00:06]} 3. Nf3 {[%emt 0:00:08]} Bg4 {[%emt 0:00:09]} 4. cxd5 {[%emt 0:00:10]} Bxf3 {[%emt 0:00:17]} 5. gxf3 {[%emt 0:00:06]} Qxd5 {[%emt 0:00:12]} 6. e3 {[%emt 0:00:04]} e5 {[%emt 0:00:11]} 7. Nc3 {[%emt 0:00:07]} Bb4 {[%emt 0:00:07]} 8. Bd2 {[%emt 0:00:09]} Bxc3 {[%emt 0:00:09]} 9. bxc3 {[%emt 0:00:06]} Qd6 {[%emt 0:00:05]} 10. Rb1 {[%emt 0:03:05]} Rb8 {[%emt 0:00:56]} 11. Be2 {[%emt 0:18:32]} Nge7 {[%emt 0:01:26]} 12. O-O {[%emt 0:01:34]} O-O {[%emt 0:03:28]} 13. Kh1 {[%emt 0:02:52]} f5 {[%emt 0:01:47]} 14. Qc2 {[%emt 0:05:33]} Rf6 {[%emt 0:05:56]} 15. Rg1 {[%emt 0:09:23]} b6 {[%emt 0:08:46]} 16. Rg2 {[%emt 0:05:02]} Rbf8 {[%emt 0:01:42]} 17. Rbg1 {[%emt 0:03:10]} Rg6 {[%emt 0:01:22]} 18. Bc1 {[%emt 0:04:55]} Rxg2 {[%emt 0:03:09]} 19. Rxg2 {[%emt 0:01:06]} Rf6 {[%emt 0:03:16]} 20. Qb3+ {[%emt 0:08:01]} Kh8 {[%emt 0:01:59]} 21. Ba3 {[%emt 0:00:52]} Qd8 {[%emt 0:05:31]} 22. Qc2 {[%emt 0:09:04]} Qc8 {[%emt 0:02:46]} 23. dxe5 {[%emt 0:02:05]} Rg6 {[%emt 0:01:20]} 24. Rxg6 {[%emt 0:02:50]} Nxg6 {[%emt 0:00:11]} 25. f4 {[%emt 0:01:22]} Nge7 {[%emt 0:02:27]} 26. Qd3 {[%emt 0:02:03]} Qe6 {[%emt 0:00:51]} 27. c4 {[%emt 0:02:02]} Qc8 {[%emt 0:01:39]} 28. Bf3 {[%emt 0:02:39]} a5 {[%emt 0:01:41]} 29. Qc3 {[%emt 0:02:40]} Qd8 {[%emt 0:01:14]} 30. Bb2 {[%emt 0:01:10]} Nb4 {[%emt 0:01:07]} 31. e6 {[%emt 0:00:40]} Qg8 {[%emt 0:01:20]} 32. a3 {[%emt 0:01:56]} Nbc6 {[%emt 0:00:11]} 33. Bd5 {[%emt 0:01:17]} Qf8 {[%emt 0:00:41]} 34. Qd3 {[%emt 0:03:33]} Qd8 {[%emt 0:01:37]} 35. Kg1 {[%emt 0:00:44]} Kg8 {[%emt 0:07:28]} 36. Qc3 {[%emt 0:01:05]} Qf8 {[%emt 0:00:13]} 37. Bf3 {[%emt 0:02:57]} Kh8 {[%emt 0:02:37]} 38. Qd3 {[%emt 0:00:00]} Qd8 {[%emt 0:01:20]} 39. Qd7 {[%emt 0:00:00]} Qxd7 {[%emt 0:00:45]} 40. exd7 {[%emt 0:00:00]} Kg8 {[%emt 0:00:35]} 41. Be5 {[%emt 0:00:00]} 1-0

[Event "Croatian-ch Youth U15 2022"]
[Site "Trogir"]
[Date "2022.06.22"]
[Round "2.7"]
[White "Djuric, Leon"]
[Black "Zadro, Matej"]
[Result "1/2-1/2"]
[ECO "A57"]
[WhiteElo "1475"]
[BlackElo "1861"]
[Annotator "NA RC"]
[PlyCount "23"]
[EventDate "2022.06.22"]
[EventType "swiss"]
[EventCountry "CRO"]
[SourceTitle "playchess.com"]
[Source "ChessBase"]
[SourceQuality "1"]
[TimeControl "5400+30"]

1. d4 {[%emt 0:00:03]} Nf6 {[%emt 0:00:10]} 2. c4 {[%emt 0:00:06]} c5 {[%emt 0:00:03]} 3. d5 {[%emt 0:00:06]} b5 {[%emt 0:00:04]} 4. cxb5 {[%emt 0:00:04]} a6 {[%emt 0:00:04]} 5. Nc3 {[%emt 0:00:16]} axb5 {[%emt 0:01:05]} 6. Nxb5 {[%emt 0:00:26]} g6 {[%emt 0:02:23]} 7. a4 {[%emt 0:03:39]} Ne4 {[%emt 0:28:35]} 8. Nf3 {[%emt 0:17:58]} Qa5+ {[%emt 0:03:19]} 9. Nd2 {[%emt 0:02:32]} Ba6 {[%emt 0:13:16]} 10. b4 {[%emt 0:04:32]} cxb4 {[%emt 0:31:58]} 11. Nxe4 {[%emt 0:00:19]} Bg7 {[%emt 0:02:30]} 12. Rb1 {[%emt 0:03:17]} 1/2-1/2

[Event "Croatian-ch Youth U15 2022"]
[Site "Trogir"]
[Date "2022.06.22"]
[Round "2.8"]
[White "Tomljanovic, Ivano"]
[Black "Mlinaric, Simun"]
[Result "0-1"]
[ECO "A53"]
[WhiteElo "1844"]
[BlackElo "1399"]
[Annotator "NA RC"]
[PlyCount "86"]
[EventDate "2022.06.22"]
[EventType "swiss"]
[EventCountry "CRO"]
[SourceTitle "playchess.com"]
[Source "ChessBase"]
[SourceQuality "1"]
[TimeControl "5400+30"]

1. d4 {[%emt 0:00:09]} Nf6 {[%emt 0:00:08]} 2. c4 {[%emt 0:00:22]} d6 {[%emt 0:00:05]} 3. Nc3 {[%emt 0:00:17]} e5 {[%emt 0:00:07]} 4. dxe5 {[%emt 0:01:35]} dxe5 {[%emt 0:00:09]} 5. Qxd8+ {[%emt 0:00:11]} Kxd8 {[%emt 0:00:11]} 6. Bg5 {[%emt 0:00:12]} Be6 {[%emt 0:02:27]} 7. O-O-O+ {[%emt 0:01:11]} Nbd7 {[%emt 0:02:31]} 8. Nf3 {[%emt 0:00:56]} Kc8 {[%emt 0:00:44]} 9. e3 {[%emt 0:02:17]} c6 {[%emt 0:07:40]} 10. Be2 {[%emt 0:03:02]} Bb4 {[%emt 0:04:05]} 11. Na4 {[%emt 0:04:21]} Ne4 {[%emt 0:06:52]} 12. Bh4 {[%emt 0:01:06]} f6 {[%emt 0:08:52]} 13. a3 {[%emt 0:00:55]} Be7 {[%emt 0:01:43]} 14. Nd2 {[%emt 0:03:00]} Nxd2 {[%emt 0:06:25]} 15. Rxd2 {[%emt 0:01:17]} Nb6 {[%emt 0:01:19]} 16. Nxb6+ {[%emt 0:00:53]} axb6 {[%emt 0:00:05]} 17. Bg3 {[%emt 0:04:21]} Ra4 {[%emt 0:03:13]} 18. Rc2 {[%emt 0:06:28]} Bf5 {[%emt 0:15:30]} 19. Rc3 {[%emt 0:01:28]} Bb4 {[%emt 0:00:51]} 20. Rb3 {[%emt 0:01:02]} Ba5 {[%emt 0:00:40]} 21. Rd1 {[%emt 0:06:11]} Be6 {[%emt 0:01:39]} 22. Rbd3 {[%emt 0:04:47]} Bxc4 {[%emt 0:08:19]} 23. Bg4+ {[%emt 0:01:05]} Kb8 {[%emt 0:01:32]} 24. Rd8+ {[%emt 0:01:02]} Rxd8 {[%emt 0:00:06]} 25. Rxd8+ {[%emt 0:00:10]} Ka7 {[%emt 0:00:09]} 26. b4 {[%emt 0:00:21]} Bxb4 {[%emt 0:04:21]} 27. axb4 {[%emt 0:00:10]} Rxb4 {[%emt 0:00:08]} 28. Bf3 {[%emt 0:02:44]} Be6 {[%emt 0:04:47]} 29. Re8 {[%emt 0:01:55]} Rc4+ {[%emt 0:03:14]} 30. Kb2 {[%emt 0:00:46]} Bg4 {[%emt 0:00:46]} 31. Bxg4 {[%emt 0:06:47]} Rxg4 {[%emt 0:00:07]} 32. Re7 {[%emt 0:00:22]} b5 {[%emt 0:01:38]} 33. f3 {[%emt 0:02:17]} Rg6 {[%emt 0:00:45]} 34. e4 {[%emt 0:00:26]} Ka6 {[%emt 0:00:22]} 35. Re8 {[%emt 0:01:27]} b6 {[%emt 0:02:30]} 36. Kb3 {[%emt 0:00:22]} c5 {[%emt 0:01:11]} 37. Re7 {[%emt 0:03:07]} h5 {[%emt 0:01:18]} 38. Kc3 {[%emt 0:01:03]} b4+ {[%emt 0:03:28]} 39. Kc4 {[%emt 0:00:51]} h4 {[%emt 0:00:37]} 40. Bxh4 {[%emt 0:00:40]} Rxg2 {[%emt 0:00:09]} 41. Bg3 {[%emt 0:01:11]} Rc2+ {[%emt 0:00:52]} 42. Kb3 {[%emt 0:00:21]} Rc3+ {[%emt 0:00:23]} 43. Kb2 {[%emt 0:00:04]} g5 {[%emt 0:01:19]} 0-1

[Event "Croatian-ch Youth U15 2022"]
[Site "Trogir"]
[Date "2022.06.22"]
[Round "2.9"]
[White "Lukinovic, Laura"]
[Black "Begic, Klara"]
[Result "0-1"]
[ECO "D31"]
[WhiteElo "1164"]
[BlackElo "1727"]
[Annotator "NA RC"]
[PlyCount "48"]
[EventDate "2022.06.22"]
[EventType "swiss"]
[EventCountry "CRO"]
[SourceTitle "playchess.com"]
[Source "ChessBase"]
[SourceQuality "1"]
[TimeControl "5400+30"]

1. d4 {[%emt 0:00:09]} d5 {[%emt 0:00:08]} 2. Nf3 {[%emt 0:00:07]} Bf5 {[%emt 0:00:18]} 3. c4 {[%emt 0:01:36]} e6 {[%emt 0:00:17]} 4. Nc3 {[%emt 0:00:54]} Nf6 {[%emt 0:00:53]} 5. Bf4 {[%emt 0:03:39]} Bd6 {[%emt 0:01:22]} 6. Bg3 {[%emt 0:05:36]} O-O {[%emt 0:03:46]} 7. e3 {[%emt 0:02:47]} c6 {[%emt 0:04:35]} 8. cxd5 {[%emt 0:01:09]} exd5 {[%emt 0:00:38]} 9. Bd3 {[%emt 0:02:29]} Bxd3 {[%emt 0:02:15]} 10. Qxd3 {[%emt 0:00:07]} Re8 {[%emt 0:01:36]} 11. Bxd6 {[%emt 0:05:10]} Qxd6 {[%emt 0:00:13]} 12. O-O {[%emt 0:00:13]} Nbd7 {[%emt 0:03:45]} 13. Rab1 {[%emt 0:01:47]} a5 {[%emt 0:04:32]} 14. a3 {[%emt 0:00:41]} Ne4 {[%emt 0:09:15]} 15. b4 {[%emt 0:04:05]} b5 {[%emt 0:09:22]} 16. Na2 {[%emt 0:06:55]} Nb6 {[%emt 0:01:49]} 17. Nd2 {[%emt 0:06:41]} axb4 {[%emt 0:10:16]} 18. Nxb4 {[%emt 0:02:33]} Nxd2 {[%emt 0:00:22]} 19. Qxd2 {[%emt 0:00:09]} Nc4 {[%emt 0:01:32]} 20. Qe2 {[%emt 0:00:31]} Rxa3 {[%emt 0:00:10]} 21. Rfc1 {[%emt 0:01:14]} Rea8 {[%emt 0:01:12]} 22. g3 {[%emt 0:00:48]} R3a4 {[%emt 0:01:32]} 23. Nd3 {[%emt 0:01:13]} Ra2 {[%emt 0:00:24]} 24. Qe1 {[%emt 0:00:52]} Nd2 {[%emt 0:00:54]} 0-1

[Event "Croatian-ch Youth U15 2022"]
[Site "Trogir"]
[Date "2022.06.22"]
[Round "2.10"]
[White "Karij, Petra"]
[Black "Botica, Lucija"]
[Result "1/2-1/2"]
[ECO "B21"]
[WhiteElo "1433"]
[BlackElo "1145"]
[Annotator "NA RC"]
[PlyCount "63"]
[EventDate "2022.06.22"]
[EventType "swiss"]
[EventCountry "CRO"]
[SourceTitle "playchess.com"]
[Source "ChessBase"]
[SourceQuality "1"]
[TimeControl "5400+30"]

1. e4 {[%emt 0:00:02]} c5 {[%emt 0:00:03]} 2. d4 {[%emt 0:00:17]} cxd4 {[%emt 0:00:07]} 3. Qxd4 {[%emt 0:00:06]} Nc6 {[%emt 0:00:06]} 4. Qd3 {[%emt 0:00:06]} Nf6 {[%emt 0:00:26]} 5. c4 {[%emt 0:00:13]} e6 {[%emt 0:01:24]} 6. Nc3 {[%emt 0:01:13]} Bc5 {[%emt 0:09:22]} 7. Bg5 {[%emt 0:04:57]} Bxf2+ {[%emt 0:03:15]} 8. Kxf2 {[%emt 0:02:48]} Ng4+ {[%emt 0:00:11]} 9. Ke1 {[%emt 0:00:25]} Qxg5 {[%emt 0:00:38]} 10. Nf3 {[%emt 0:01:13]} Qe3+ {[%emt 0:01:38]} 11. Qxe3 {[%emt 0:00:21]} Nxe3 {[%emt 0:00:06]} 12. Kd2 {[%emt 0:00:45]} Nxf1+ {[%emt 0:01:11]} 13. Rhxf1 {[%emt 0:00:12]} O-O {[%emt 0:07:27]} 14. Nb5 {[%emt 0:04:23]} a6 {[%emt 0:05:50]} 15. Nd6 {[%emt 0:01:16]} f6 {[%emt 0:08:37]} 16. Kc3 {[%emt 0:10:29]} Rb8 {[%emt 0:07:17]} 17. Rf2 {[%emt 0:05:51]} b5 {[%emt 0:06:49]} 18. c5 {[%emt 0:03:00]} a5 {[%emt 0:17:36]} 19. Rd1 {[%emt 0:06:47]} Ba6 {[%emt 0:03:36]} 20. b3 {[%emt 0:11:30]} b4+ {[%emt 0:02:27]} 21. Kb2 {[%emt 0:01:43]} Ne5 {[%emt 0:02:54]} 22. Nxe5 {[%emt 0:03:14]} fxe5 {[%emt 0:00:11]} 23. Rc2 {[%emt 0:01:18]} Bb7 {[%emt 0:04:23]} 24. Nxb7 {[%emt 0:02:14]} Rxb7 {[%emt 0:00:05]} 25. Rd6 {[%emt 0:00:07]} Rf6 {[%emt 0:05:55]} 26. Ra6 {[%emt 0:05:30]} Rf4 {[%emt 0:03:14]} 27. Re2 {[%emt 0:01:36]} Rb5 {[%emt 0:00:35]} 28. c6 {[%emt 0:00:25]} dxc6 {[%emt 0:00:07]} 29. Rxc6 {[%emt 0:00:04]} Rf6 {[%emt 0:00:14]} 30. Rc7 {[%emt 0:01:01]} Rf7 {[%emt 0:00:47]} 31. Rc6 {[%emt 0:00:21]} Rf6 {[%emt 0:00:34]} 32. Rc7 {[%emt 0:00:07]} 1/2-1/2